Cogmind - Beta 16 @@@ ROGUE MODE // 2025.11.23 @ 16:00:02 Player: ChromeKnight Result: Destroyed by T7-2GR(R) with Subdweller Machine Gun Performance ------------- Evolutions (0) 0 Regions Visited (2) 400 Robots Destroyed (23) 115 Value Destroyed (778) 778 Prototype IDs (12) 240 Alien Tech Used (0) 0 Bonus (-68) -68 TOTAL SCORE: 1465 Bonus ------- Friendly Fire -68 Cogmind --------- Core Integrity 0/250 Matter 144/300 Energy 185/200 System Corruption 0% Temperature Cool (0) Movement Treading (480) Ox4 Location -10/Subcaves Parts ------- > --- POWER (1) -------- Subdweller Power Source > --- PROPULSION (2) --- Light Treads Wheel > --- UTILITY (2) ------ Huge Storage Unit Makeshift Light Armor Plating > --- WEAPON (2) ------- Makeshift Axe > --- INVENTORY (25) --- Wheel Wheel Wheel Wheel Heat Sink Scrap Shield Hacking Suite Power Bank Riot Gun Subdweller Laser Battle Cannon Multitool Makeshift Sword Peak State ------------ > --- POWER ------------ Subdweller Power Source > --- PROPULSION ------- Light Treads Wheel > --- UTILITY ---------- Heat Sink Huge Storage Unit > --- WEAPON ----------- Subdweller Shrapnel Launcher Makeshift Axe > --- INVENTORY -------- Light Treads Wheel Wheel Wheel Wheel Wheel Makeshift Light Armor Plating Scrap Shield Hacking Suite Power Bank Riot Gun Subdweller Laser Battle Cannon Subdweller Shrapnel Launcher Multitool Makeshift Sword [Rating: 16] Favorites ----------- Power Ion Engine Engine Ion Engine Propulsion Light Treads Treads Light Treads Wheel Wheel Utility Heat Sink Device Heat Sink Storage Huge Storage Unit Protection Makeshift Light Armor Plating Weapon EM Pulse Gun Energy Gun EM Pulse Gun Ballistic Cannon Battle Cannon Launcher Subdweller Shrapnel Launcher Slashing Weapon Makeshift Axe Build | -11 -10 -10 ------- Run | Yrd Mat Sub Slots Evolved . | . . . Power . | . . . Propulsion . | . . . Utility . | . . . Weapon . | . . . Parts Attached 18 | 6 3 9 Power 2 | 1 . 1 Engine 2 | 1 . 1 Core . | . . . Reactor . | . . . Propulsion 4 | 2 1 1 Treads 2 | 2 . . Leg . | . . . Wheel 2 | . 1 1 Hover . | . . . Flight . | . . . Utility 4 | 1 2 1 Device 1 | . 1 . Storage 2 | 1 1 . Processor . | . . . Hackware . | . . . Protection 1 | . . 1 Artifact . | . . . Weapon 8 | 2 . 6 Energy Gun 4 | 2 . 2 Energy Cannon . | . . . Ballistic Gun . | . . . Ballistic Cannon 1 | . . 1 Launcher 2 | . . 2 Special Weapon . | . . . Impact Weapon . | . . . Slashing Weapon 1 | . . 1 Piercing Weapon . | . . . Special Melee Weapon . | . . . Unidentified Prototypes . | . . . Parts Lost 8 | . . 8 Power 1 | . . 1 Propulsion 2 | . . 2 Utility . | . . . Weapon 5 | . . 5 Highest Loss Streak 2 | . . 2 To Critical Strikes . | . . . Average Backups 10 | . 2 12 Power . | . . . Propulsion 5 | . 1 5 Utility 2 | . . 3 Weapon 2 | . . 2 Tool/Special . | . . . Unused Backups 10 | . . 10 Power . | . . . Propulsion 4 | . . 4 Utility 3 | . . 3 Weapon 2 | . . 2 Tool/Special 1 | . . 1 Average Slot Usage (%) 97 | . 94 98 Engine 13 | . 14 13 Treads 15 | . 24 13 Wheel 12 | . 3 13 Device 13 | . 8 13 Storage 14 | . 14 14 Energy Gun 12 | . 28 9 Ballistic Cannon 1 | . . 1 Launcher 7 | . . 8 Slashing Weapon 6 | . . 8 Peak Build Rating 16 | 6 8 16 Average Rating 11 | 3 6 12 On Entrance 4 | . 6 8 Avg Prop Armor Cover (%) 13 | . 11 13 Naked Turns . | . . . Heaviest Build 98 | 14 90 98 Greatest Support 40 | 40 40 10 Greatest Overweight (x) 9 | . 8 9 Average Overweight (x) 7 | . 1 8 Largest Inventory Capacity 25 | 8 25 25 Average Capacity 22 | 6 10 25 Most Carried 17 | . 8 17 Average Carried 10 | . 2 12 Final Capacity 25 | 8 25 25 Final Carried 14 | . 8 14 Class Distribution -------------------- 100% | Mutant Dominant Class ---------------- Mutant | -10/Materials Mutant | -10/Subcaves Resources | -11 -10 -10 ----------- Run | Yrd Mat Sub Matter Collected 561 | 209 75 277 Remotely . | . . . Salvage Created 804 | . 261 543 Parts 57 | . 22 35 Haulers Intercepted . | . . . Recyclers Shooed . | . . . Parts Field Recycled . | . . . Retrieved Matter . | . . . Parts Self-Destructed 2 | . . 2 Prevented 1 | . . 1 Parts Restored . | . . . Kills | -11 -10 -10 ------- Run | Yrd Mat Sub Combat Hostiles Destroyed 21 | . 7 14 Melee 1 | . . 1 Guns 7 | . 6 1 Cannons 2 | . . 2 AOE 10 | . . 10 Classes Destroyed 7 | . 4 3 Tunneler 1 | . 1 . Operator 1 | . 1 . Swarmer 3 | . 3 . Grunt 6 | . 4 2 Sentry 1 | . . 1 Artisan 3 | . . 3 Subdweller 11 | . . 11 Best Kill Streak 4 | . 4 3 Combat Bots Only 4 | . 4 3 Max Kills in Single Turn 2 | . 2 2 Gunslinging 1 | . 1 . Exploded 2 | . . 2 Melee 1 | . . 1 Uniques/NPCs Destroyed . | . . . Combat | -11 -10 -10 -------- Run | Yrd Mat Sub Hostile Shots Fired 73 | . 22 51 Missed 22 | . 8 14 Hits 51 | . 14 37 Projectile 51 | . 14 37 Damage Taken 1074 | . 167 907 Core 253 | . 18 235 Absorbed by Shields . | . . . Core Remaining (%) 100 | 100 . . Volleys Fired 57 | . 19 38 Largest 2 | . 2 2 Hottest 93 | . 80 93 Shots Fired 87 | . 38 49 Gun 61 | . 38 23 Cannon 12 | . . 12 Launcher 14 | . . 14 Special . | . . . Kinetic 26 | . . 26 Thermal 7 | . . 7 Explosive . | . . . Electromagnetic 54 | . 38 16 Robot Hit Streak 10 | . 5 10 Robot Miss Streak 3 | . 3 2 Penetration Max . | . . . Secondary Targets 1 | . 1 . Max Gunslinging Chain 1 | . 1 . Shots Hit Robots 62 | . 25 37 Core Hits 37 | 1 12 24 Critical Kills . | . . . Critical Parts Destroyed . | . . . Critical Strikes . | . . . Melee Attacks 38 | . . 38 Impact . | . . . Slashing 38 | . . 38 Piercing . | . . . Sneak Attacks 3 | . . 3 Combat Hostiles . | . . . Follow-up Attacks . | . . . Damage Inflicted 2109 | 1 361 1747 Guns 498 | . 330 168 Cannons 83 | . . 83 Explosions 1193 | . 31 1162 Melee 334 | . . 334 Ramming 1 | 1 . . Kinetic 1161 | . . 1161 Thermal 159 | . 31 128 Explosive . | . . . Electromagnetic 454 | . 330 124 Impact . | . . . Slashing 334 | . . 334 Piercing . | . . . Highest Corruption . | . . . Average Corruption . | . . . Corruption Purged . | . . . Corruption Blocked . | . . . Overload Shots . | . . . Overflow Damage 58 | . . 58 Projectiles . | . . . Explosions 6 | . . 6 Melee 52 | . . 52 Knockbacks 1 | . . 1 Impact . | . . . Kinetic 1 | . . 1 Secondary . | . . . Self-Inflicted Damage 85 | . . 85 Shots 5 | . . 5 Rammed 1 | 1 . . Targets Rammed 1 | 1 . . Kicked . | . . . Crushed . | . . . Highest Temperature 42 | . 42 . Average Temperature 10 | . 10 . Received Heat Transfer 204 | . 87 117 Siege Activations . | . . . Martial Activations . | . . . Shielding Activations . | . . . Robots Disrupted . | . . . Combat Hostiles . | . . . Robots Corrupted 1 | . 1 . Combat Hostiles 1 | . 1 . Parts Fried 3 | . 1 2 Impact Corruptions . | . . . Robots Melted . | . . . Combat Hostiles . | . . . Parts Melted . | . . . Heat Transferred 200 | . 50 150 Parts Sabotaged . | . . . Parts Stolen . | . . . Parts Stripped . | . . . Power Chain Reactions 3 | . 1 2 Alert | -11 -10 -10 ------- Run | Yrd Mat Sub Maximum Alert Level . | . . . Low Security (%) 100 | 100 100 . Level 1 . | . . . Level 2 . | . . . Level 3 . | . . . Level 4 . | . . . Level 5 . | . . . High Security . | . . . Max Security . | . . . Peak Influence 157 | . 157 . Initial . | . . . Average 57 | . 67 . Influence Increases 297 | . 227 70 Destroy 0b10 Robot/C 200 | . 140 60 Destroy 0b10 Robot/NC 10 | . 10 . Destroy Leader 40 | . 30 10 Disable Machine 15 | . 15 . Destroy Structure 2 | . 2 . Lose Combat Pursuer 30 | . 30 . Influence Decreases 297 | . 144 153 Entered New Map 41 | . . 41 Time Decay 256 | . 144 112 Squads Dispatched 2 | . 2 . Investigation . | . . . Extermination . | . . . Reinforcement 2 | . 2 . Assault . | . . . Garrison . | . . . Intercept . | . . . Searches Triggered . | . . . Construction Impeded . | . . . Haulers Reinforced . | . . . Active Scanning Responses . | . . . Cargo Convoy Interrupts . | . . . Stealth | -11 -10 -10 --------- Run | Yrd Mat Sub Distress Signals 1 | . 1 . Communications Jammed . | . . . Distress Signals . | . . . Times Spotted 29 | . 14 15 Peak Tracking Total 3 | . 3 2 Tactical Retreats 1 | . 1 . Traps | -11 -10 -10 ------- Run | Yrd Mat Sub Traps Triggered 1 | . . 1 Indirectly . | . . . Trap Hack Attempts . | . . . Triggered . | . . . Disarmed . | . . . Reprogrammed . | . . . Reused . | . . . Traps Extracted . | . . . Installed . | . . . Triggered . | . . . Machines | -11 -10 -10 ---------- Run | Yrd Mat Sub Machines Disabled 4 | . 1 3 Max in Single Turn 2 | . 1 2 Machines Repaired . | . . . Machines Dismantled . | . . . Machines Sabotaged . | . . . Overloaded Fab Kills . | . . . Hacking | -11 -10 -10 --------- Run | Yrd Mat Sub Machines Accessed 1 | . . 1 Terminals . | . . . Fabricators . | . . . Repair Stations . | . . . Recycling Units . | . . . Scanalyzers . | . . . Garrison Access . | . . . Total Hacks 1 | . . 1 Successful 1 | . . 1 Failed . | . . . Catastrophic . | . . . Database Lockouts . | . . . Manual . | . . . Terminals . | . . . Fabricators . | . . . Repair Stations . | . . . Recycling Units . | . . . Scanalyzers . | . . . Garrison Access . | . . . Terminal Hacks 1 | . . 1 Proto ID Catalog 1 | . . 1 Fabricator Hacks . | . . . Repair Station Hacks . | . . . Recycling Unit Hacks . | . . . Scanalyzer . | . . . Garrison Access Hacks . | . . . Unauthorized Hacks . | . . . Terminals . | . . . Fabricators . | . . . Repair Stations . | . . . Recycling Units . | . . . Scanalyzers . | . . . Garrison Access . | . . . Data Cores Recovered . | . . . Used . | . . . Hacking Detections . | . . . Full Trace Events . | . . . Feedback Events . | . . . Feedback Blocked . | . . . Robot Schematics Acquired . | . . . Robots Built . | . . . Authchips . | . . . Time . | . . . Total Robot Build Rating . | . . . Part Schematics Acquired . | . . . Parts Built . | . . . Authchips . | . . . Time . | . . . Total Part Build Rating . | . . . Part Studies Acquired . | . . . Parts Repaired . | . . . Time . | . . . Parts Recycled . | . . . Recycled Matter . | . . . Retrieved Matter . | . . . Retrieved Components . | . . . Parts Scanalyzed . | . . . Part Schematics Acquired . | . . . Parts Damaged . | . . . Bothacking | -11 -10 -10 ------------ Run | Yrd Mat Sub Used RIF Installer . | . . . Robots Hacked . | . . . Non-combat . | . . . Combat . | . . . Robot Hacks Applied . | . . . Relay Couplers Released . | . . . Fabnet Peak Effective % . | . . . Robots Rewired . | . . . Allies Hacked . | . . . Hacks Repelled . | . . . Allies | -11 -10 -10 -------- Run | Yrd Mat Sub Total Allies . | . . . Largest Group . | . . . Highest-Rated Group . | . . . Highest-Rated Ally . | . . . Total Orders . | . . . Ally Attacks . | . . . Total Damage . | . . . Kills . | . . . Allies Corrupted . | . . . Allies Melted . | . . . Intel | -11 -10 -10 ------- Run | Yrd Mat Sub Active Infowar (turns) . | . . . Robot Analysis Total . | . . . Derelict Logs Recovered 1 | . . 1 Drone Launches . | . . . Drone Recoveries . | . . . Exploration | -11 -10 -10 ------------- Run | Yrd Mat Sub Turns Passed 2838 | 74 458 2306 Spaces Moved 1229 | 49 198 982 Core 13 | 13 . . Treads 163 | 36 127 . Legs . | . . . Wheels 1053 | . 71 982 Hover . | . . . Flight . | . . . Fastest Speed 50 | 50 95 200 Average Speed 198 | 130 155 210 Slowest Speed 215 | 160 200 215 Overloaded Moves . | . . . Propulsion Burnouts . | . . . Robots Hopped . | . . . Potential Cave-ins 12 | . . 12 Cave-ins Triggered . | . . . Exploration Rate (%) 35 | 4 37 66 Regions Visited 2 Branch Regions 1 Pre-discovered Areas . | . . . Known Exits Taken . | . . . Unknown Exits Taken 2 | 1 1 . Scrap Searched 8 | . . 8 Spaces Dug 28 | . . 28 Terrain Destroyed 144 | . 2 142 Melee 28 | . . 28 Projectile . | . . . AOE 116 | . 2 114 Terrain Rammed . | . . . Walls Destroyed . | . . . Machines Disabled . | . . . Actions | -11 -10 -10 --------- Run | Yrd Mat Sub Total 1493 | 55 311 1127 Wait 130 | . 83 47 Move 1227 | 48 197 982 Hop . | . . . Pick Up 16 | . 7 9 Fast Attach 11 | 6 2 3 Attach 5 | . . 5 Detach 2 | . 1 1 Swap 5 | . 1 4 Drop 1 | . 1 . Fire 57 | . 19 38 Melee 38 | . . 38 Ram . | . . . Kick . | . . . Crush 1 | 1 . . Escape Stasis . | . . . Rewire . | . . . Trap . | . . . Miscellaneous . | . . . Route ------- -11/Scrapyard -10/Materials (discovered 2 exits: [*Mat] / *Sub) -10/Subcaves (discovered 2 exits: [*Mat x2]) History --------- Turn | Location | Event 3 | -11/Scrapyard | Discovered new exit (range 16) 75 | -11/Scrapyard | Entered Materials 144 | -10/Materials | Discovered new exit (range 9) 302 | -10/Materials | Build established: Mutant 373 | -10/Materials | Discovered new exit (range 11) 533 | -10/Materials | Entered Subcaves 533 | -10/Subcaves | Learned Materials trap positions 534 | -10/Subcaves | Approached by a straggling Scientist 839 | -10/Subcaves | Visited 4L-MR0's lab 864 | -10/Subcaves | Found Power Bank 1093 | -10/Subcaves | Disturbed a concealed Subdweller 1211 | -10/Subcaves | Core integrity fell below 50% 1832 | -10/Subcaves | Shifting Twisted Machinery released Mak. Sword 1835 | -10/Subcaves | Shifting Twisted Machinery released Riot Gun 2052 | -10/Subcaves | Discovered new exit (range 7) 2088 | -10/Subcaves | Disturbed a concealed Subdweller 2312 | -10/Subcaves | Discovered new exit (range 13) 2826 | -10/Subcaves | Core integrity fell below 20% 2839 | -10/Subcaves | Destroyed by T7-2GR(R) with Subdweller Machine Gun Last Messages --------------- 02404_ U5-81L(u) destroyed. 02406_ Acquired 15 matter. 02410_ Acquired Multitool. 02485_ Subatomizers dissect the Sub. Power Source. 02524_ Subatomizers dissect the Sub. Monowheel, destroying it. 02721_ Acquired 2 matter. 02729_ 1W-RLH(R) destroyed. 02733_ W2-6CP(R): "ARGHSUB!" 02734_ Sub. Shrapnel Launcher destroyed. 02736_ Destroyed Scrap Shield. 02736_ IO-DMJ(R) destroyed. 02737_ Wheel destroyed. 02738_ W2-6CP(R) destroyed. 02754_ Acquired 4 matter. 02821_ Lgt. Treads destroyed. 02823_ Sub. Shrapnel Launcher destroyed. 02823_ Destroyed Sub. Shrapnel Launcher. 02837_ Destroyed Scrap Shield. Map ----- +----------------------------------------------------+ | ????????????????????????????????????????????? | | ????????????????????????????????????????????? | | ????????????????#####???????????????????????? | | ??????????????### #???????????????????????? | | ????????????### ####?????????????????????? | | ???????????## #?????????????????????? | | ???????????# #????##???????????????? | | ???????#####" #???# #???????????????? | | ??????## #" #?## ????????????????? | | ??????# " ### #????????????????? | | ??????# [!| ## #????????????????? | | ??????## ## #????????????????? | | ???????## #????????????????? | | ????????# ###??????????????? | | ????????# "# ##?????????????? | | ????????## #### #### #?????????????? | | ?????????# ##??###??# #?????????????? | | ???????### ##????????# #?????????????? | | ??###### &##?????????## ###?????????????? | | ### %#???????????### ##???????????????? | | #?????????????# #???????????????? | | ##???????????## #???????????????? | | #???#???????# #???????????????? | | ### ##### ?????# #???????????????? | | #####?# ## ???# ####?????????????? | | #?????# ?##@ #?????????????? | | ??????# ## R ##?????????????? | | ?????? R #??????????????? | | ?????? #??????????????? | | ?????? ## #?????????????? | | ????? ### #?????????????? | | ????? ##?# ##?????????????? | | ?????##### #? ##??????????????? | | ??????????#"" ## #???????????????? | | ??????????????? #???????????????? | | ?????????????? " #???????????????? | | ????????????? "#### #???????????????? | | ??????????????# ##???# ##???????????????? | | ??????????????# #????? #????????????????? | | ????????????????#?????? #????????????????? | | ??????????????????????? #?????????????????? | | ??????????????????????? #??????????????????? | | ???????????????????????""???????????????????? | | ????????????????????????????????????????????? | | ????????????????????????????????????????????? | | ????????????????????????????????????????????? | | ????????????????????????????????????????????? | | ????????????????????????????????????????????? | | ????????????????????????????????????????????? | | ????????????????????????????????????????????? | +----------------------------------------------------+ Best States ------------- Heat Dissipation 35 Energy Generation 10 Energy Capacity 250 Matter Stores 300 Matter Capacity 300 Sight Range 16 Terrain Scan Density 10 Armor Coverage 100 Evasion (%) 41 Recoil Reduction 2 Item Schematics ----------------- None Robot Schematics ------------------ None Fabricated ------------ Nothing Repaired ---------- Nothing Studied --------- None Alien Tech Used ----------------- None Achievements -------------- None Challenges ------------ None Game ------ Seed HugeAntisysBallwheel Manual? 0 Play Time 00:15:05 Cumulative 576.3 hours Start 2025.11.23 @ 15:49:12 End 2025.11.23 @ 16:00:02 Sessions 1 Manual Loads 0 Difficulty Rogue Special Mode None Game No. 911 Rogue 756 Adventurer 148 Explorer 7 Win Type - Total 28 Types 21/1/4/1/0/0/1/0/0/0 Lore% 81 Gallery% 84 Achievement% 71 Wizard Run 0 Options --------- Layout 1 ASCII 0 Keyboard 0 Movement Numpad Keybinds 0 Fullscreen 2 Font 24/Smallcaps Map View 50x40 Zoom Use 0% Tactical HUD 1 Map Filters NONE Filters NONE Steam 1 RUN: 4164e387-e57f-44f7-87f1-5a8280997535